bitfinex/quotes_BTCUSD_20250102
["timestamp","ask_amount","ask_price","bid_price","bid_amount"]
[1735840949986,0.00019169,96767.0,96766.0,0.008]
[1735840950194,0.10019169,96767.0,96766.0,0.008]
[1735840950398,0.35417801,96767.0,96766.0,0.008]
[1735840950612,0.45417801,96767.0,96766.0,0.005]
[1735840951088,0.0803,96740.0,96736.0,0.0001708]
[1735840951298,0.413483,96739.0,96736.0,0.0001708]
[1735840951536,0.1,96737.0,96736.0,0.0001708]
[1735840951772,0.35398632,96737.0,96736.0,0.0001708]
[1735840951976,0.47698632,96737.0,96736.0,0.0001708]
[1735840952226,0.47698632,96737.0,96728.0,0.0001708]
[1735840952227,0.556758,96731.0,96728.0,0.0001708]
[1735840952439,0.76404432,96731.0,96728.0,0.0001708]
[1735840952870,0.0772,96698.0,96684.0,0.206857]
[1735840953481,0.0772,96698.0,96681.0,0.1]
[1735840953684,0.0772,96698.0,96687.0,0.206852]
[1735840954261,0.0772,96698.0,96687.0,0.00049014]
[1735840954465,0.206831,96697.0,96688.0,1.5]
[1735840954671,0.0772,96698.0,96688.0,1.5]
[1735840954905,0.206841,96693.0,96688.0,1.5]
[1735840955259,0.206844,96691.0,96688.0,1.5]
[1735840955471,0.206844,96691.0,96687.0,0.00049014]
[1735840955670,0.413689,96691.0,96687.0,0.00049014]
[1735840955888,0.413689,96691.0,96687.0,0.00149014]
[1735840956297,0.413689,96691.0,96687.0,0.00049014]
[1735840956504,0.513689,96691.0,96687.0,0.00049014]
[1735840956710,0.1,96688.0,96687.0,0.00049014]
[1735840956916,0.12725244,96688.0,96687.0,0.00049014]
[1735840957129,0.20398632,96688.0,96687.0,0.00049014]
[1735840957332,0.59428399,96688.0,96687.0,0.00049014]
[1735840957542,0.206876,96676.0,96671.0,0.0002]
[1735840957763,0.206876,96676.0,96675.0,0.00031292]
[1735840957962,0.31086232,96676.0,96675.0,0.00031292]
[1735840958363,0.306876,96676.0,96675.0,0.00031292]
[1735840958621,0.76426232,96676.0,96675.0,0.00031292]
[1735840958795,0.306902,96664.0,96663.0,0.000171]
[1735840958993,0.41088832,96664.0,96663.0,0.00022003]
[1735840959221,0.46328803,96664.0,96663.0,0.00022003]
[1735840959468,0.68388832,96664.0,96663.0,0.00022003]
[1735840959871,0.58388832,96664.0,96663.0,0.00022003]
[1735840960047,0.206902,96664.0,96663.0,0.00022003]
[1735840960264,0.306902,96664.0,96663.0,0.00022003]
[1735840960477,0.41088832,96664.0,96663.0,0.00022003]
[1735840960690,0.206895,96667.0,96663.0,0.00022003]
[1735840961132,0.413791,96667.0,96663.0,0.00022003]
[1735840961723,0.206895,96667.0,96663.0,0.00022003]
[1735840961934,0.003,96664.0,96663.0,0.00022003]
[1735840962143,0.003,96664.0,96663.0,0.00122003]
[1735840962357,0.1,96664.0,96663.0,1.50122003]
[1735840962600,0.20398632,96664.0,96663.0,0.00122003]
[1735840962898,0.20398632,96664.0,96663.0,0.00022003]
[1735840963118,0.45398632,96664.0,96663.0,0.00022003]
[1735840963338,0.45398632,96664.0,96630.0,0.206973]
[1735840963339,0.206961,96637.0,96619.0,0.206998]
[1735840963553,0.206961,96637.0,96631.0,0.00034712]
[1735840963765,0.20697,96632.0,96631.0,0.00034712]
[1735840964180,0.28367,96632.0,96631.0,0.00034712]
[1735840965278,0.28367,96632.0,96631.0,0.00134712]
[1735840965813,0.28367,96632.0,96631.0,0.00034712]
[1735840966264,0.28367,96632.0,96631.0,0.00191202]
[1735840966539,0.0857,96632.0,96631.0,0.00291202]
[1735840966751,0.0857,96632.0,96631.0,0.001]
[1735840966959,0.0877,96632.0,96631.0,0.001]
[1735840967171,0.011,96632.0,96631.0,0.001]
[1735840967819,0.002,96632.0,96629.0,0.206976]
[1735840968130,0.01,96632.0,96629.0,0.51793832]
[1735840968330,0.008,96632.0,96629.0,0.51793832]
[1735840968564,0.016,96632.0,96629.0,0.51793832]
[1735840968775,0.008,96632.0,96629.0,0.51793832]
[1735840968975,0.288436,96648.0,96629.0,0.31096232]
[1735840969166,0.0815,96648.0,96638.0,0.206956]
[1735840970022,0.0815,96648.0,96643.0,0.206947]
[1735840970227,0.002,96648.0,96638.0,0.206956]
[1735840970407,0.0308426,96648.0,96629.0,0.0010856]
[1735840970665,0.0001712,96632.0,96629.0,0.0010856]
[1735840971382,0.2071432,96632.0,96629.0,8.56e-05]
[1735840971514,0.0001712,96632.0,96629.0,8.56e-05]
[1735840971896,0.206972,96631.0,96629.0,8.56e-05]
[1735840972514,0.0001712,96632.0,96629.0,8.56e-05]
[1735840973460,0.0001712,96632.0,96629.0,0.0010856]
[1735840973679,0.2071432,96632.0,96629.0,0.0010856]
[1735840973888,0.2071432,96632.0,96629.0,0.00098274]
[1735840974204,0.0001712,96632.0,96629.0,0.00098274]
[1735840974622,0.0001712,96632.0,96629.0,0.001]
[1735840974823,0.0021712,96632.0,96627.0,7.599e-05]
[1735840975050,0.0021712,96632.0,96628.0,0.413958]
[1735840975212,0.0081712,96632.0,96629.0,0.001]
[1735840975548,0.0081712,96632.0,96630.0,0.206975]
[1735840975677,0.0101712,96632.0,96630.0,0.206975]
[1735840975888,0.0021712,96632.0,96630.0,0.206975]
[1735840976300,0.0101712,96632.0,96630.0,0.206975]
[1735840976507,0.0081712,96632.0,96631.0,1.5]
[1735840977892,0.0101712,96632.0,96631.0,1.5]
[1735840978094,0.0021712,96632.0,96631.0,1.5]
[1735840978300,0.0001712,96632.0,96631.0,1.60398632]
[1735840978510,0.0081712,96632.0,96631.0,1.60398632]
[1735840978928,0.0001712,96632.0,96631.0,1.5]
[1735840979183,0.0011712,96632.0,96631.0,1.5]
[1735840979389,0.0011712,96632.0,96631.0,1.501]
[1735840979596,0.0011712,96632.0,96631.0,1.60498632]
[1735840980002,0.0001712,96632.0,96631.0,1.60498632]
[1735840980837,0.0001712,96632.0,96631.0,1.60398632]
[1735840981037,0.0001712,96632.0,96631.0,1.60498632]
[1735840981355,0.0001712,96632.0,96631.0,1.75498632]
[1735840981514,0.0011712,96632.0,96631.0,2.36104732]
[1735840981762,0.0001712,96632.0,96631.0,2.29141132]
[1735840981972,0.0001712,96632.0,96631.0,2.20785632]
[1735840982177,0.0011712,96632.0,96631.0,2.20785632]
[1735840982385,0.0001712,96632.0,96631.0,2.23094192]
[1735840982590,2e-07,96632.0,96631.0,2.2983417]
[1735840982798,2e-07,96632.0,96631.0,1.8514717]
[1735840983011,2e-07,96632.0,96631.0,2.0514717]
[1735840983218,0.1271,96688.0,96662.0,0.1]
[1735840983427,0.079,96688.0,96663.0,0.72433332]
[1735840983651,0.079,96688.0,96674.0,0.1]
[1735840983860,0.079,96688.0,96687.0,0.206853]
[1735840984070,0.079,96688.0,96675.0,1.60398632]
[1735840984697,0.079,96688.0,96676.0,0.206876]
[1735840985075,0.089,96688.0,96687.0,0.001]
[1735840985292,0.082,96688.0,96687.0,0.206853]
[1735840985634,0.079,96688.0,96683.0,0.20686]
[1735840985848,0.079,96688.0,96675.0,1.707878]
[1735840985849,0.087,96688.0,96675.0,1.707878]
[1735840986055,0.087,96688.0,96675.0,1.706878]
[1735840986265,0.293851,96688.0,96687.0,0.001]
[1735840986476,0.303851,96688.0,96687.0,0.001]
[1735840987074,0.097,96688.0,96687.0,0.001]
[1735840987275,0.018,96688.0,96687.0,0.001]
[1735840987485,0.01,96688.0,96687.0,0.001]
[1735840987699,0.002,96688.0,96686.0,1.5]
[1735840987903,0.008,96688.0,96686.0,1.5]
[1735840988108,0.008,96688.0,96681.0,0.206864]
[1735840988511,0.016,96688.0,96687.0,0.001]
[1735840988690,0.0804,96700.0,96682.0,1.5]
[1735840988909,0.206845,96691.0,96681.0,0.206864]
[1735840989457,0.00014675,96695.0,96667.0,0.206893]
[1735840989664,0.008,96688.0,96667.0,0.206893]
[1735840989896,0.206874,96677.0,96667.0,0.206893]
[1735840990127,0.008,96688.0,96667.0,0.206893]
[1735840990337,0.03921331,96688.0,96663.0,0.413703]
[1735840990540,0.206865,96681.0,96663.0,0.2068]
[1735840990746,0.206891,96669.0,96663.0,0.2068]
[1735840992025,0.206884,96673.0,96654.0,0.206922]
[1735840992234,0.206899,96666.0,96663.0,0.001]
[1735840992435,0.413798,96666.0,96663.0,0.002]
[1735840992668,0.18618632,96665.0,96663.0,0.002]
[1735840992875,0.206902,96664.0,96663.0,0.002]
[1735840993062,0.1,96657.0,96631.0,0.2070566]
[1735840993271,0.206947,96643.0,96631.0,0.2070566]
[1735840993690,0.206947,96643.0,96631.0,8.56e-05]
[1735840993900,0.206955,96639.0,96632.0,1.5]
[1735840994324,0.206955,96639.0,96632.0,1.50050358]
[1735840994761,0.047,96646.0,96632.0,1.50050358]
[1735840994973,0.206968,96634.0,96632.0,1.50050358]
[1735840995202,0.206968,96634.0,96632.0,0.00350358]
[1735840995415,0.0811,96633.0,96632.0,0.00350358]
[1735840995625,0.0811,96633.0,96632.0,0.00250358]
[1735840995626,0.18508632,96633.0,96632.0,0.00250358]
[1735840996037,0.18508632,96633.0,96632.0,0.00050358]
[1735840996915,0.19559397,96633.0,96632.0,0.00050358]
[1735840997884,0.20459397,96633.0,96632.0,0.00150358]
[1735840998089,0.20459397,96633.0,96632.0,0.00080738]
[1735840998372,0.20697,96632.0,96631.0,8.56e-05]
[1735840998524,0.20697,96632.0,96631.0,0.00023656]
[1735840999330,0.10060765,96633.0,96614.0,0.207007]
[1735840999539,0.0811,96633.0,96615.0,0.10398632]
[1735840999746,0.206954,96640.0,96626.0,0.206982]
[1735840999951,0.206949,96642.0,96625.0,0.206985]
[1735841000152,0.206949,96642.0,96626.0,0.206983]
[1735841000388,0.09047081,96641.0,96627.0,0.206981]
[1735841000592,0.09047081,96641.0,96631.0,0.206972]
[1735841001013,0.009,96632.0,96631.0,0.207972]
[1735841001218,0.286444,96645.0,96631.0,0.413944]
[1735841001423,0.286444,96645.0,96631.0,0.206972]
[1735841001598,0.009,96642.0,96635.0,0.206963]
[1735841001838,0.0795,96645.0,96635.0,0.206963]
[1735841002041,0.09047081,96657.0,96636.0,0.10398632]
[1735841002215,0.009,96641.0,96636.0,0.10398632]
[1735841002372,0.009,96641.0,96640.0,1.5]
[1735841002577,0.41385,96654.0,96640.0,1.5]
[1735841002803,0.41385,96654.0,96641.0,0.206951]
[1735841003004,0.206925,96654.0,96641.0,0.206951]
[1735841003635,0.206925,96654.0,96641.0,0.20710201]
[1735841003798,0.283116,96658.0,96641.0,0.00015101]
[1735841003799,0.206941,96646.0,96641.0,0.00015101]
[1735841004018,0.206938,96647.0,96641.0,0.00015101]
[1735841004461,0.009,96642.0,96641.0,0.00015101]
[1735841004871,0.206938,96647.0,96641.0,0.00015101]
[1735841005073,0.20692,96656.0,96641.0,0.00115101]
[1735841005303,0.007,96647.0,96641.0,0.00115101]
[1735841005499,0.0762,96658.0,96642.0,0.31093532]
[1735841005671,0.0762,96658.0,96650.0,0.206931]
[1735841005848,0.206898,96666.0,96654.0,0.206922]
[1735841006049,0.206904,96663.0,96651.0,0.206929]
[1735841006252,0.206904,96663.0,96643.0,0.206947]
[1735841006253,0.206904,96663.0,96642.0,0.10398632]
[1735841006463,0.0001712,96654.0,96648.0,0.206934]
[1735841006669,0.0001712,96654.0,96644.0,0.206945]
[1735841006876,0.007,96647.0,96644.0,0.41389]
[1735841007080,0.007,96647.0,96645.0,0.10398632]
[1735841007281,0.007,96647.0,96644.0,0.206945]
[1735841007282,0.007,96647.0,96646.0,0.20694]
[1735841008318,0.0001712,96654.0,96646.0,1.70694]
[1735841009322,0.007,96647.0,96646.0,1.70794]
[1735841009530,0.0001712,96654.0,96650.0,0.206932]
[1735841009945,0.0091712,96654.0,96650.0,0.206932]
[1735841010229,0.0001712,96654.0,96650.0,0.206932]
[1735841010396,0.0001712,96654.0,96646.0,1.70694]
[1735841010609,0.0001712,96654.0,96641.0,0.00015101]
[1735841010809,0.206925,96653.0,96641.0,0.20710201]
[1735841011020,0.206925,96653.0,96641.0,0.00015101]
[1735841011181,0.206927,96652.0,96641.0,0.20710101]
[1735841012010,0.206939,96647.0,96641.0,0.00015101]
[1735841012214,0.004,96647.0,96641.0,0.20710101]
[1735841012670,0.01076754,96654.0,96641.0,0.20710101]
[1735841012841,0.252549,96642.0,96641.0,0.00115101]
[1735841013048,0.43763532,96642.0,96641.0,0.00115101]
[1735841013245,0.43763532,96642.0,96641.0,0.00015101]
[1735841014230,0.43763532,96642.0,96641.0,0.00115101]
[1735841014231,0.44663532,96642.0,96641.0,0.00115101]
[1735841015452,0.44763532,96642.0,96641.0,0.00015101]
[1735841015704,0.43863532,96642.0,96632.0,8.56e-05]
[1735841015905,0.10398632,96641.0,96632.0,0.00023655]
[1735841016104,0.34505288,96642.0,96632.0,0.00023655]
[1735841016105,0.206953,96640.0,96632.0,0.00023655]
[1735841016693,0.206963,96636.0,96632.0,0.00023655]
[1735841017091,0.206953,96640.0,96632.0,0.00023655]
[1735841017267,0.413907,96640.0,96632.0,0.00023655]
[1735841017480,0.206955,96639.0,96632.0,0.00023655]
[1735841017687,0.206964,96635.0,96632.0,0.00023655]
[1735841017910,0.306968,96633.0,96632.0,0.00023655]
[1735841018108,1.17836432,96633.0,96632.0,0.00023655]
[1735841018324,1.25366432,96633.0,96632.0,0.00023655]
[1735841018728,1.27666432,96633.0,96632.0,0.00023655]
[1735841018939,1.27666432,96633.0,96590.0,0.01088182]
[1735841018940,0.207037,96601.0,96590.0,0.01088182]
[1735841019168,0.94883332,96601.0,96600.0,0.01049109]
[1735841019590,1.22183332,96601.0,96600.0,0.01049109]
[1735841019795,1.32183332,96601.0,96600.0,0.01049109]
[1735841020206,0.557056,96592.0,96590.0,8.55e-05]
[1735841020419,1.20145232,96592.0,96591.0,0.00035089]
[1735841020834,0.97845232,96592.0,96591.0,0.00035089]
[1735841021299,0.82845232,96592.0,96591.0,0.00035089]
[1735841021749,0.92845232,96592.0,96591.0,0.00035089]
[1735841021920,1.25412333,96592.0,96591.0,0.00035089]
[1735841022124,0.20711,96567.0,96566.0,8.55e-05]
[1735841022303,0.207103,96571.0,96566.0,0.00015368]
[1735841023130,0.414206,96571.0,96566.0,0.00015368]
[1735841023800,0.416206,96571.0,96566.0,0.00015368]
[1735841023965,0.002,96571.0,96566.0,0.00115368]
[1735841024318,0.002,96571.0,96566.0,0.00015368]
[1735841026265,0.01,96571.0,96566.0,0.00015368]
[1735841028713,0.01,96571.0,96568.0,0.207107]
[1735841028924,0.01,96571.0,96570.0,0.207103]
[1735841029140,0.01,96571.0,96570.0,0.31108932]
[1735841029320,0.01,96571.0,96568.0,0.207107]
[1735841029471,0.01,96571.0,96568.0,0.31109332]
[1735841029683,0.002,96571.0,96566.0,0.00015368]
[1735841029907,0.01,96571.0,96566.0,0.20726468]
[1735841030085,0.008,96571.0,96566.0,0.20726468]
[1735841030266,0.207087,96578.0,96566.0,0.20726468]
[1735841030469,0.005,96571.0,96566.0,0.20726468]
[1735841030668,0.005,96571.0,96566.0,0.00015368]
[1735841030880,0.003,96571.0,96566.0,0.20726368]
[1735841031087,0.003,96571.0,96570.0,0.207103]
[1735841031695,0.207067,96587.0,96574.0,0.207094]
[1735841031904,0.207067,96587.0,96566.0,0.20726468]
[1735841031905,0.207077,96583.0,96566.0,0.00015368]
[1735841032112,0.207077,96583.0,96571.0,0.207099]
[1735841032526,0.207077,96583.0,96575.0,1.5]
[1735841033095,0.0106633,96591.0,96575.0,1.5]
[1735841033334,0.207087,96578.0,96575.0,1.5]
[1735841033509,0.207104,96570.0,96566.0,0.00015368]
[1735841034824,0.207097,96573.0,96566.0,0.00015368]
[1735841035657,0.0789,96577.0,96566.0,0.20726468]
[1735841035889,0.002,96570.0,96566.0,0.20726468]
[1735841036136,0.0789,96577.0,96566.0,0.20726468]
[1735841036137,0.207095,96575.0,96566.0,0.20726468]
[1735841036398,0.207095,96575.0,96567.0,1.5]
[1735841036657,0.207107,96569.0,96567.0,1.5]
[1735841036904,0.207107,96569.0,96566.0,0.00015368]
[1735841037382,0.414214,96569.0,96566.0,0.00015368]
[1735841038243,0.207107,96569.0,96566.0,0.00115368]
[1735841038423,0.207094,96575.0,96566.0,0.00115368]
[1735841038667,0.207102,96571.0,96566.0,0.00115368]
[1735841038870,0.002,96570.0,96566.0,0.00094611]
[1735841039190,0.207105,96569.0,96566.0,0.00094611]
[1735841039401,0.724515,96569.0,96550.0,0.01]
[1735841039619,0.207107,96568.0,96551.0,0.0002493]
[1735841039838,0.51741,96568.0,96553.0,0.20714]
[1735841040067,0.20711,96567.0,96553.0,0.31112632]
[1735841040291,0.51741,96567.0,96551.0,0.0002493]
[1735841040458,0.207118,96564.0,96551.0,0.0002493]
[1735841040707,0.207118,96563.0,96551.0,0.0002493]
[1735841041475,0.414272,96555.0,96551.0,0.0002493]
[1735841041703,0.207136,96555.0,96551.0,0.0002493]
[1735841042282,0.207138,96554.0,96551.0,1.5002493]
[1735841042489,0.207142,96552.0,96551.0,0.0002493]
[1735841043084,0.724552,96552.0,96551.0,0.0003349]
[1735841043304,0.82853832,96552.0,96551.0,0.0003349]
[1735841043538,0.724552,96552.0,96551.0,0.0003349]
[1735841044386,0.82853832,96552.0,96551.0,0.0003349]
[1735841044835,0.62139632,96552.0,96534.0,8.55e-05]
[1735841045005,0.207173,96538.0,96535.0,0.00023393]
[1735841045222,0.414346,96538.0,96535.0,0.00023393]
[1735841045423,0.286976,96536.0,96535.0,0.00023393]
[1735841045591,0.95407232,96536.0,96535.0,0.00023393]
[1735841046211,1.10407232,96536.0,96535.0,0.00023393]
[1735841046528,1.20407232,96536.0,96535.0,0.00023393]
[1735841047239,1.21207232,96536.0,96535.0,0.00023393]
[1735841047925,1.31207232,96536.0,96535.0,0.00023393]
[1735841048264,1.31207232,96536.0,96511.0,0.0002]
[1735841048265,0.282228,96512.0,96511.0,0.0002]
[1735841048617,0.799638,96512.0,96511.0,0.00069124]
[1735841048823,0.94882432,96512.0,96511.0,0.00069124]
[1735841049083,1.22182432,96512.0,96511.0,0.00069124]
[1735841049255,1.32182432,96512.0,96511.0,0.00069124]
[1735841050069,0.207264,96495.0,96477.0,0.01079867]
[1735841050332,0.724674,96495.0,96494.0,0.00023357]
[1735841051674,1.07866032,96495.0,96494.0,0.00023357]
[1735841051933,1.15466032,96495.0,96494.0,0.00023357]
[1735841052176,0.207308,96475.0,96458.0,0.207342]
[1735841052392,0.1,96472.0,96465.0,0.00025148]
[1735841052596,0.207326,96467.0,96465.0,0.00025148]
[1735841053006,0.724736,96467.0,96465.0,0.00025148]
[1735841053217,0.51741,96467.0,96465.0,0.00025148]
[1735841054084,0.52641,96467.0,96465.0,0.00025148]
[1735841054422,0.52841,96467.0,96465.0,0.00025148]
[1735841054622,0.52841,96467.0,96466.0,0.207326]
[1735841055266,0.52841,96467.0,96466.0,1.707326]
[1735841055473,0.51941,96467.0,96466.0,1.707326]
[1735841055679,0.52641,96467.0,96466.0,1.81131232]
[1735841056086,0.52041,96467.0,96466.0,1.707326]
[1735841056289,0.52441,96467.0,96466.0,1.5]
[1735841057098,0.52141,96467.0,96466.0,1.5]
[1735841058534,0.52141,96467.0,96465.0,8.56e-05]
[1735841058669,0.207326,96466.0,96465.0,8.56e-05]
[1735841059967,0.009,96466.0,96465.0,8.56e-05]
[1735841060163,0.009,96466.0,96461.0,0.414672]
[1735841060370,0.009,96466.0,96465.0,0.10398632]
[1735841060579,0.011,96466.0,96465.0,0.10398632]
[1735841060930,0.011,96466.0,96465.0,0.47698632]
[1735841061133,0.011,96466.0,96465.0,1.30787532]
[1735841061351,0.011,96466.0,96465.0,1.07287932]
[1735841061956,0.009,96466.0,96465.0,1.07287932]
[1735841062153,0.011,96466.0,96465.0,1.07287932]
[1735841062350,0.002,96466.0,96465.0,1.07287932]
[1735841062577,0.002,96466.0,96465.0,2.53768875]
[1735841062928,0.51741,96467.0,96466.0,0.457326]
[1735841063131,0.51741,96467.0,96466.0,0.90128232]
[1735841063511,0.51741,96467.0,96466.0,2.26881232]
[1735841063893,0.51741,96467.0,96466.0,2.43497432]
[1735841064307,0.51741,96467.0,96466.0,2.16881232]
[1735841064458,0.51741,96467.0,96466.0,2.26881232]
[1735841065398,0.51841,96467.0,96466.0,2.27181232]
[1735841065606,0.51841,96467.0,96466.0,2.17181232]
[1735841065799,0.51841,96467.0,96466.0,2.16881232]
[1735841066028,0.51941,96467.0,96466.0,2.02181232]
[1735841066236,0.51741,96467.0,96466.0,2.02181232]
[1735841066433,0.5175814,96467.0,96466.0,1.917826]
[1735841066656,0.5185814,96467.0,96466.0,1.914826]
[1735841066868,0.5185814,96467.0,96466.0,1.917826]
[1735841068307,0.5175814,96467.0,96466.0,1.914826]
[1735841068529,0.5175814,96467.0,96466.0,1.916826]
[1735841068719,0.5175814,96467.0,96466.0,1.918826]
[1735841069116,0.5175814,96467.0,96466.0,1.916826]
[1735841069522,0.5175814,96467.0,96466.0,1.914826]
[1735841069921,0.5185814,96467.0,96466.0,2.01981232]
[1735841070344,0.5185814,96467.0,96466.0,2.16981232]
[1735841070550,0.5185814,96467.0,96466.0,2.77329232]
[1735841070748,0.4978494,96467.0,96466.0,2.89629232]
[1735841070949,0.0787,96508.0,96490.0,0.207275]
[1735841071195,0.0787,96508.0,96501.0,0.207251]
[1735841071370,0.0787,96518.0,96501.0,0.207251]
[1735841071784,0.0787,96518.0,96502.0,1.5]
[1735841072141,0.0787,96518.0,96504.0,0.207245]
[1735841072398,0.207193,96528.0,96505.0,0.10398632]
[1735841072399,0.285893,96528.0,96505.0,0.10398632]
[1735841072515,0.009,96516.0,96506.0,0.15]
[1735841072720,0.009,96516.0,96515.0,0.407221]
[1735841072938,0.009,96516.0,96515.0,0.41120732]
[1735841073144,0.018,96516.0,96515.0,0.41120732]
[1735841073369,0.207166,96541.0,96515.0,1.91120732]
[1735841073588,0.207155,96546.0,96516.0,0.10398632]
[1735841073794,0.207171,96539.0,96524.0,0.207201]
[1735841074000,0.207171,96539.0,96524.0,0.31118732]
[1735841074244,0.207171,96539.0,96526.0,0.207198]
[1735841074812,0.207188,96531.0,96518.0,0.207214]
[1735841075027,0.207188,96531.0,96495.0,0.02095861]
[1735841075028,0.207161,96543.0,96491.0,0.1]
[1735841075230,0.207213,96519.0,96505.0,0.207241]
[1735841075917,0.005,96531.0,96518.0,0.001]
[1735841076123,0.207213,96519.0,96518.0,0.001]
[1735841076536,0.286713,96519.0,96518.0,0.001]
[1735841076770,0.207215,96518.0,96506.0,0.207241]
[1735841076974,0.207215,96518.0,96505.0,0.001]
[1735841077651,0.207224,96514.0,96505.0,0.001]
[1735841078008,0.207224,96514.0,96499.0,0.207255]
[1735841079307,0.20722,96516.0,96499.0,0.207255]
[1735841079509,0.0795,96519.0,96504.0,0.207245]
[1735841079709,0.2072,96526.0,96505.0,0.10398632]
[1735841079944,0.002,96514.0,96511.0,0.207229]
[1735841080169,0.207192,96529.0,96511.0,0.207229]
[1735841080378,0.0001714,96531.0,96512.0,0.10398632]
[1735841080584,0.0001714,96531.0,96528.0,0.207192]
[1735841080803,0.0001714,96531.0,96522.0,0.207205]
[1735841081018,0.0001714,96531.0,96530.0,0.207189]
[1735841081223,0.0001714,96531.0,96523.0,0.207204]
[1735841081444,0.0001714,96531.0,96528.0,0.207193]
[1735841081650,0.0001714,96531.0,96529.0,0.10398632]
[1735841082098,0.0001714,96531.0,96530.0,0.002]
[1735841082756,0.0001714,96531.0,96527.0,0.207195]
[1735841082961,0.0001714,96531.0,96529.0,0.002]
[1735841084281,0.0001714,96531.0,96526.0,1.707196]
[1735841084613,0.0001714,96531.0,96530.0,0.001]
[1735841085235,0.0001714,96531.0,96526.0,0.414392]
[1735841085454,0.0001714,96531.0,96530.0,0.207189]
[1735841085659,0.0001714,96531.0,96530.0,0.31117532]
[1735841085873,0.0001714,96531.0,96530.0,1.81117532]
[1735841086288,0.0001714,96531.0,96530.0,1.81217532]
[1735841088954,0.0001714,96531.0,96530.0,0.31217532]
[1735841089369,0.0001714,96531.0,96530.0,1.81217532]
[1735841091240,0.0001714,96531.0,96530.0,0.31217532]
[1735841091482,0.0001714,96531.0,96530.0,0.001]
[1735841092546,0.0779714,96531.0,96530.0,0.001]
[1735841092752,0.1233714,96531.0,96530.0,0.001]
[1735841092962,0.22735772,96531.0,96530.0,0.001]
[1735841093375,0.47735772,96531.0,96530.0,0.001]
[1735841094199,0.207231,96511.0,96498.0,0.207257]
[1735841094410,0.20724,96507.0,96500.0,1.5]
[1735841095210,0.207223,96514.0,96500.0,1.5]
[1735841095386,0.207225,96513.0,96500.0,1.5]
[1735841095537,0.005,96507.0,96500.0,1.5]
[1735841095951,0.006,96507.0,96500.0,1.5]
[1735841096173,0.207243,96505.0,96500.0,1.5]
[1735841096493,0.0789,96507.0,96500.0,1.5]
[1735841096699,0.207241,96506.0,96500.0,1.5]
[1735841097101,0.207241,96506.0,96491.0,0.207271]
[1735841097514,0.207241,96506.0,96492.0,1.5]
[1735841098139,0.207241,96506.0,96494.0,0.207264]
[1735841098723,0.0829,96507.0,96494.0,0.207264]
[1735841098921,0.207217,96517.0,96501.0,0.20725]
[1735841099108,0.207225,96514.0,96501.0,0.20725]
[1735841099445,0.004,96506.0,96503.0,0.10398632]
[1735841099645,0.0792,96521.0,96511.0,0.207228]
[1735841100025,0.0792,96521.0,96511.0,0.414457]
[1735841100229,0.0792,96521.0,96502.0,4.918e-05]
[1735841100230,0.286785,96532.0,96512.0,0.10398632]
[1735841100444,0.207189,96530.0,96517.0,0.207217]
[1735841101008,0.0001714,96531.0,96518.0,0.10398632]
[1735841101220,0.0001714,96531.0,96529.0,0.20719]
[1735841101432,0.0001714,96531.0,96530.0,0.10398632]
[1735841101642,0.0001714,96531.0,96525.0,0.2072]
[1735841101643,0.002,96530.0,96525.0,0.2072]
[1735841101845,0.207191,96529.0,96509.0,0.2073]
[1735841102055,0.207206,96522.0,96510.0,0.10398632]
[1735841102268,0.207232,96510.0,96509.0,0.2073]
[1735841102473,0.0796,96528.0,96509.0,0.2073]
[1735841102702,0.207195,96527.0,96502.0,4.918e-05]
[1735841102910,0.207222,96515.0,96502.0,0.20729718]
[1735841103311,0.207222,96515.0,96502.0,4.918e-05]
[1735841103312,0.207232,96511.0,96502.0,4.918e-05]
[1735841103519,0.207222,96515.0,96502.0,0.20729818]
[1735841103729,0.207215,96519.0,96504.0,0.41449]
[1735841103952,0.207215,96519.0,96504.0,0.207245]
[1735841104162,0.207215,96519.0,96502.0,4.918e-05]
[1735841104163,0.0796,96528.0,96502.0,4.918e-05]
[1735841104564,0.0796,96528.0,96505.0,1.5]
[1735841104769,0.207231,96511.0,96505.0,1.5]
[1735841104967,0.207241,96506.0,96505.0,1.5]
[1735841105181,0.0795,96505.0,96502.0,4.918e-05]
[1735841105579,0.286743,96505.0,96502.0,4.918e-05]
[1735841105988,0.0795,96505.0,96502.0,4.918e-05]
[1735841106192,0.207245,96504.0,96502.0,4.918e-05]
[1735841106397,0.0795,96505.0,96502.0,4.918e-05]
[1735841106598,0.207219,96516.0,96502.0,4.918e-05]
[1735841106819,0.207228,96512.0,96502.0,4.918e-05]
[1735841107022,0.207239,96507.0,96502.0,4.918e-05]
[1735841107225,0.207247,96504.0,96502.0,4.918e-05]
[1735841107880,0.207247,96504.0,96502.0,0.00204918]
[1735841108272,0.207241,96506.0,96502.0,4.918e-05]
[1735841108670,0.207241,96506.0,96502.0,0.00304918]
[1735841109130,0.207241,96506.0,96502.0,4.918e-05]
[1735841109563,0.414483,96506.0,96502.0,0.00204918]
[1735841110775,0.414483,96506.0,96502.0,4.918e-05]
[1735841110982,0.423483,96506.0,96502.0,4.918e-05]
[1735841111395,0.414483,96506.0,96502.0,4.918e-05]
[1735841111588,0.425483,96506.0,96502.0,4.918e-05]
[1735841111752,0.416483,96506.0,96502.0,4.918e-05]
[1735841111952,0.414483,96506.0,96502.0,4.918e-05]
[1735841112177,0.423483,96506.0,96502.0,4.918e-05]
[1735841112398,0.012,96506.0,96502.0,4.918e-05]
[1735841113130,0.012,96506.0,96502.0,1.50004918]
[1735841113310,0.426485,96506.0,96502.0,1.50004918]
[1735841113710,0.423485,96506.0,96502.0,1.50004918]
[1735841113908,0.216242,96506.0,96502.0,1.50004918]
[1735841114252,0.013,96506.0,96502.0,1.50004918]
[1735841114407,0.009,96506.0,96502.0,1.50004918]
[1735841114811,0.207243,96505.0,96502.0,1.50004918]
[1735841115030,0.012,96506.0,96502.0,1.50004918]
[1735841115659,0.009,96506.0,96503.0,0.51847932]